[Event "*** SCC Grand Prix: Titled Tuesday Blitz"]
[Site "Chess.com"]
[Date "2020.09.29"]
[Round "1"]
[White "Lagmantr"]
[Black "Kaslask"]
[Result "0-1"]
[WhiteElo "2647"]
[BlackElo "2359"]
[TimeControl "180+1"]
[EndTime "10:07:12 PDT"]
[Termination "Kaslask won by resignation"]

1. c4 {[%clk 0:03:00.1]} 1... Nf6 {[%clk 0:02:58.8]} 2. Nf3 {[%clk 0:02:58.6]}
2... g6 {[%clk 0:02:56.2]} 3. g3 {[%clk 0:02:58.6]} 3... Bg7 {[%clk 0:02:55.4]}
4. Bg2 {[%clk 0:02:59.1]} 4... O-O {[%clk 0:02:53.7]} 5. b3 {[%clk 0:02:58.4]}
5... d5 {[%clk 0:02:46.9]} 6. Bb2 {[%clk 0:02:56.8]} 6... dxc4 {[%clk
0:02:44.4]} 7. bxc4 {[%clk 0:02:57.7]} 7... c5 {[%clk 0:02:43.9]} 8. O-O {[%clk
0:02:57]} 8... Nc6 {[%clk 0:02:43.7]} 9. e3 {[%clk 0:02:51.7]} 9... Bf5 {[%clk
0:02:35.4]} 10. d4 {[%clk 0:02:42]} 10... cxd4 {[%clk 0:02:13.5]} 11. exd4
{[%clk 0:02:40.3]} 11... Rc8 {[%clk 0:02:05.4]} 12. Nbd2 {[%clk 0:02:37.6]}
12... Ne4 {[%clk 0:02:03.2]} 13. Nb3 {[%clk 0:02:29.2]} 13... Na5 {[%clk
0:02:01.6]} 14. Nxa5 {[%clk 0:02:22.2]} 14... Qxa5 {[%clk 0:02:00.2]} 15. Qb3
{[%clk 0:02:20.2]} 15... b6 {[%clk 0:01:52.9]} 16. Rfe1 {[%clk 0:02:18.4]} 16...
Nd2 {[%clk 0:01:48.2]} 17. Nxd2 {[%clk 0:02:16.1]} 17... Qxd2 {[%clk 0:01:47.4]}
18. Re3 {[%clk 0:01:29.1]} 18... Bxd4 {[%clk 0:01:41.3]} 19. Rd1 {[%clk
0:01:28.2]} 19... Qxb2 {[%clk 0:01:40.5]} 20. Rxe7 {[%clk 0:01:14.6]} 20...
Bxf2+ {[%clk 0:01:36.4]} 21. Kf1 {[%clk 0:01:13.2]} 21... Bd4 {[%clk 0:01:30.2]}
22. Qxb2 {[%clk 0:01:06.7]} 22... Bxb2 {[%clk 0:01:29.7]} 23. Rxa7 {[%clk
0:01:06.4]} 23... Rxc4 {[%clk 0:01:28.7]} 24. Bd5 {[%clk 0:01:06.2]} 24... Rd4
{[%clk 0:01:26.2]} 25. Rxd4 {[%clk 0:01:02.1]} 25... Bxd4 {[%clk 0:01:25.7]} 26.
Ke2 {[%clk 0:01:00.4]} 26... Be6 {[%clk 0:01:21.1]} 27. Bxe6 {[%clk 0:00:58.7]}
27... fxe6 {[%clk 0:01:20.4]} 28. Kd3 {[%clk 0:00:59.6]} 28... Bc5 {[%clk
0:01:19.6]} 29. Kc4 {[%clk 0:00:58.6]} 29... Rf3 {[%clk 0:01:18]} 30. a4 {[%clk
0:00:58.2]} 30... Ra3 {[%clk 0:01:13.6]} 31. Kb5 {[%clk 0:00:50.6]} 31... Ra2
{[%clk 0:01:12.9]} 32. Rd7 {[%clk 0:00:43]} 32... Bg1 {[%clk 0:01:08.4]} 33. h3
{[%clk 0:00:42]} 33... Ra3 {[%clk 0:01:07.8]} 34. Rd8+ {[%clk 0:00:27.1]} 34...
Kg7 {[%clk 0:01:06.6]} 35. Rd7+ {[%clk 0:00:28]} 35... Kf6 {[%clk 0:01:05.2]}
36. Rxh7 {[%clk 0:00:25.1]} 36... Rxg3 {[%clk 0:01:04.6]} 37. h4 {[%clk
0:00:26]} 37... Rh3 {[%clk 0:01:03.5]} 38. Rh8 {[%clk 0:00:25.2]} 38... Ke5
{[%clk 0:01:01.4]} 39. Rg8 {[%clk 0:00:23.2]} 39... Rxh4 {[%clk 0:00:56.1]} 40.
Rxg6 {[%clk 0:00:22.7]} 40... Be3 {[%clk 0:00:55.8]} 41. Rg8 {[%clk 0:00:17.9]}
41... Ke4 {[%clk 0:00:55.3]} 42. Rc8 {[%clk 0:00:15.5]} 42... e5 {[%clk
0:00:54.3]} 43. Rc4+ {[%clk 0:00:15.4]} 43... Bd4 {[%clk 0:00:54.1]} 44. Rc1
{[%clk 0:00:15.9]} 44... Rh2 {[%clk 0:00:51.9]} 45. Re1+ {[%clk 0:00:14.4]}
45... Kd3 {[%clk 0:00:51.6]} 46. Rd1+ {[%clk 0:00:13.9]} 46... Rd2 {[%clk
0:00:50.8]} 47. Rf1 {[%clk 0:00:13.8]} 47... Rb2+ {[%clk 0:00:50.4]} 48. Kc6
{[%clk 0:00:13.2]} 48... e4 {[%clk 0:00:50.1]} 49. Kd5 {[%clk 0:00:13.2]} 49...
e3 {[%clk 0:00:49.8]} 50. Rf4 {[%clk 0:00:13.6]} 50... Rb4 {[%clk 0:00:49.4]}
51. Re4 {[%clk 0:00:13.5]} 51... e2 {[%clk 0:00:48.1]} 52. a5 {[%clk 0:00:10.3]}
52... bxa5 {[%clk 0:00:47]} 0-1

[Event "*** SCC Grand Prix: Titled Tuesday Blitz"]
[Site "Chess.com"]
[Date "2020.09.29"]
[Round "1"]
[White "NotFischer"]
[Black "Sashadav97"]
[Result "1-0"]
[WhiteElo "2280"]
[BlackElo "2559"]
[TimeControl "180+1"]
[EndTime "10:07:15 PDT"]
[Termination "NotFischer won on time"]

1. e4 {[%clk 0:02:57.3]} 1... c5 {[%clk 0:02:59.5]} 2. Nc3 {[%clk 0:02:56.8]}
2... e6 {[%clk 0:02:57]} 3. g3 {[%clk 0:02:57.7]} 3... Nc6 {[%clk 0:02:54.4]} 4.
Bg2 {[%clk 0:02:58.4]} 4... g6 {[%clk 0:02:54.8]} 5. d3 {[%clk 0:02:58.4]} 5...
Bg7 {[%clk 0:02:54.3]} 6. Nge2 {[%clk 0:02:59.1]} 6... Nge7 {[%clk 0:02:53.1]}
7. O-O {[%clk 0:02:59.1]} 7... Rb8 {[%clk 0:02:39.8]} 8. Be3 {[%clk 0:02:57.6]}
8... Nd4 {[%clk 0:02:39.8]} 9. f4 {[%clk 0:02:54.5]} 9... O-O {[%clk 0:02:33.7]}
10. Qd2 {[%clk 0:02:54.6]} 10... f5 {[%clk 0:02:33.1]} 11. Nd1 {[%clk
0:02:41.3]} 11... b6 {[%clk 0:02:24.1]} 12. Nc1 {[%clk 0:02:41.3]} 12... Bb7
{[%clk 0:02:21]} 13. c3 {[%clk 0:02:41.5]} 13... Ndc6 {[%clk 0:02:21.3]} 14. Ne2
{[%clk 0:02:41.6]} 14... d5 {[%clk 0:02:21.1]} 15. e5 {[%clk 0:02:33.6]} 15...
d4 {[%clk 0:02:21.2]} 16. Bf2 {[%clk 0:02:33.9]} 16... Qd7 {[%clk 0:02:20.8]}
17. c4 {[%clk 0:02:27]} 17... a6 {[%clk 0:02:09]} 18. h3 {[%clk 0:02:26.3]}
18... b5 {[%clk 0:02:08.2]} 19. b3 {[%clk 0:02:26.2]} 19... Ba8 {[%clk
0:01:38.9]} 20. Nb2 {[%clk 0:02:25.8]} 20... a5 {[%clk 0:01:34.8]} 21. cxb5
{[%clk 0:02:25.2]} 21... Rxb5 {[%clk 0:01:35.7]} 22. Rac1 {[%clk 0:02:23.4]}
22... Nd5 {[%clk 0:01:22.3]} 23. Nc4 {[%clk 0:02:13]} 23... Rfb8 {[%clk
0:01:17.9]} 24. Nd6 {[%clk 0:02:10.6]} 24... Bf8 {[%clk 0:01:16.8]} 25. Nxb5
{[%clk 0:02:10.4]} 25... Rxb5 {[%clk 0:01:17.7]} 26. Kh2 {[%clk 0:02:09]} 26...
a4 {[%clk 0:01:04]} 27. bxa4 {[%clk 0:02:09]} 27... Ra5 {[%clk 0:01:04.3]} 28.
g4 {[%clk 0:01:42.4]} 28... Nce7 {[%clk 0:00:52.5]} 29. Qxa5 {[%clk 0:01:31.6]}
29... Bb7 {[%clk 0:00:44.2]} 30. Rxc5 {[%clk 0:01:28.1]} 30... Ne3 {[%clk
0:00:42.2]} 31. Bxe3 {[%clk 0:01:23]} 31... Bxg2 {[%clk 0:00:38.3]} 32. Kxg2
{[%clk 0:01:23.3]} 32... dxe3 {[%clk 0:00:38.9]} 33. Qc7 {[%clk 0:01:20.4]}
33... Qxd3 {[%clk 0:00:35.8]} 34. Rc2 {[%clk 0:01:14.4]} 34... Qe4+ {[%clk
0:00:21.8]} 35. Kh2 {[%clk 0:01:14.3]} 35... Qxa4 {[%clk 0:00:21.8]} 36. Qc4
{[%clk 0:01:13.2]} 36... Qd7 {[%clk 0:00:21.4]} 37. Nd4 {[%clk 0:01:13.2]} 37...
Nd5 {[%clk 0:00:20.4]} 38. Re2 {[%clk 0:01:04.9]} 38... fxg4 {[%clk 0:00:14.9]}
39. hxg4 {[%clk 0:01:04.4]} 39... Bg7 {[%clk 0:00:15.3]} 40. Nf3 {[%clk
0:01:00.2]} 40... h6 {[%clk 0:00:14.6]} 41. f5 {[%clk 0:00:58.9]} 41... exf5
{[%clk 0:00:09.8]} 42. Rxe3 {[%clk 0:00:59.2]} 42... Kh7 {[%clk 0:00:07.7]} 43.
Rd3 {[%clk 0:00:58.6]} 43... fxg4 {[%clk 0:00:05.8]} 44. Qxd5 {[%clk 0:00:58.1]}
44... Qe7 {[%clk 0:00:03.3]} 45. Qd7 {[%clk 0:00:49.4]} 45... Qf8 {[%clk
0:00:01.9]} 46. Ng5+ {[%clk 0:00:48.9]} 1-0

[Event "*** SCC Grand Prix: Titled Tuesday Blitz"]
[Site "Chess.com"]
[Date "2020.09.29"]
[Round "1"]
[White "HouseOfDurin"]
[Black "maximnovik"]
[Result "0-1"]
[WhiteElo "2143"]
[BlackElo "2511"]
[TimeControl "180+1"]
[EndTime "10:07:17 PDT"]
[Termination "maximnovik won on time"]

1. d4 {[%clk 0:03:00.9]} 1... Nf6 {[%clk 0:02:59]} 2. Bg5 {[%clk 0:03:01.4]}
2... c5 {[%clk 0:02:56.7]} 3. Bxf6 {[%clk 0:03:01.3]} 3... exf6 {[%clk
0:02:56.7]} 4. c3 {[%clk 0:03:01.9]} 4... d5 {[%clk 0:02:42.1]} 5. e3 {[%clk
0:03:01]} 5... Nc6 {[%clk 0:02:39.8]} 6. Nd2 {[%clk 0:02:54.2]} 6... cxd4 {[%clk
0:02:34.6]} 7. cxd4 {[%clk 0:02:50.3]} 7... Bd6 {[%clk 0:02:32.2]} 8. g3 {[%clk
0:02:49.3]} 8... h5 {[%clk 0:02:30.7]} 9. h4 {[%clk 0:02:48.6]} 9... g6 {[%clk
0:02:26.2]} 10. Bg2 {[%clk 0:02:48.1]} 10... O-O {[%clk 0:02:21.8]} 11. Ne2
{[%clk 0:02:47.9]} 11... Bc7 {[%clk 0:02:11.2]} 12. Nc3 {[%clk 0:02:47.2]} 12...
Be6 {[%clk 0:02:07.4]} 13. O-O {[%clk 0:02:46.4]} 13... Kg7 {[%clk 0:02:04.8]}
14. a3 {[%clk 0:02:46.5]} 14... g5 {[%clk 0:01:57.6]} 15. hxg5 {[%clk
0:02:43.2]} 15... fxg5 {[%clk 0:01:57.4]} 16. Qxh5 {[%clk 0:02:42.2]} 16... g4
{[%clk 0:01:39.3]} 17. Nxd5 {[%clk 0:01:38.9]} 17... Rh8 {[%clk 0:01:37.8]} 18.
Qxh8+ {[%clk 0:01:38.7]} 18... Kxh8 {[%clk 0:01:33.6]} 19. Nxc7 {[%clk
0:01:39.2]} 19... Qxc7 {[%clk 0:01:32.3]} 20. d5 {[%clk 0:01:39.8]} 20... Rd8
{[%clk 0:01:30.6]} 21. e4 {[%clk 0:01:28.8]} 21... Ne5 {[%clk 0:01:29.6]} 22.
Rac1 {[%clk 0:01:21]} 22... Qe7 {[%clk 0:01:26.4]} 23. f4 {[%clk 0:00:58]} 23...
gxf3 {[%clk 0:01:18.8]} 24. Nxf3 {[%clk 0:00:57]} 24... Nxf3+ {[%clk 0:01:12.6]}
25. Rxf3 {[%clk 0:00:57.9]} 25... Bg4 {[%clk 0:01:11.3]} 26. Rf4 {[%clk
0:00:58.1]} 26... Rg8 {[%clk 0:01:08.4]} 27. Rcf1 {[%clk 0:00:42.7]} 27... Qe5
{[%clk 0:00:59.4]} 28. R1f2 {[%clk 0:00:25.6]} 28... Rg6 {[%clk 0:00:51.8]} 29.
Rxf7 {[%clk 0:00:18.9]} 29... Qxg3 {[%clk 0:00:51.2]} 30. Rf8+ {[%clk
0:00:19.1]} 30... Rg8 {[%clk 0:00:45.6]} 31. R8f6 {[%clk 0:00:13.4]} 31... Kh7
{[%clk 0:00:35.1]} 32. Rf7+ {[%clk 0:00:13]} 32... Rg7 {[%clk 0:00:34.7]} 33.
R7f4 {[%clk 0:00:11.5]} 33... Bh3 {[%clk 0:00:30.8]} 34. R4f3 {[%clk 0:00:06]}
34... Qxg2+ {[%clk 0:00:30.8]} 35. Rxg2 {[%clk 0:00:06]} 35... Bxg2 {[%clk
0:00:30.8]} 36. Rf4 {[%clk 0:00:02.8]} 36... Bxe4+ {[%clk 0:00:30.5]} 37. Kf2
{[%clk 0:00:03.4]} 37... Bxd5 {[%clk 0:00:30.7]} 38. Ke3 {[%clk 0:00:03]} 38...
Bc6 {[%clk 0:00:30.3]} 39. Kd4 {[%clk 0:00:02]} 39... Rg5 {[%clk 0:00:28.8]} 40.
Kc3 {[%clk 0:00:01.9]} 40... Kg6 {[%clk 0:00:28.3]} 41. b4 {[%clk 0:00:01.8]}
41... Rf5 {[%clk 0:00:28.4]} 0-1

[Event "*** SCC Grand Prix: Titled Tuesday Blitz"]
[Site "Chess.com"]
[Date "2020.09.29"]
[Round "1"]
[White "francyIM"]
[Black "PowerThinking2650"]
[Result "1-0"]
[WhiteElo "2752"]
[BlackElo "2379"]
[TimeControl "180+1"]
[EndTime "10:07:19 PDT"]
[Termination "francyIM won on time"]

1. d4 {[%clk 0:02:59.7]} 1... Nf6 {[%clk 0:02:58.8]} 2. c4 {[%clk 0:02:59.1]}
2... g6 {[%clk 0:02:58.8]} 3. g3 {[%clk 0:02:58]} 3... Bg7 {[%clk 0:02:58.8]} 4.
Bg2 {[%clk 0:02:58.3]} 4... d6 {[%clk 0:02:59.2]} 5. Nc3 {[%clk 0:02:58]} 5...
O-O {[%clk 0:02:59.5]} 6. Nf3 {[%clk 0:02:58.3]} 6... Nbd7 {[%clk 0:03:00]} 7.
O-O {[%clk 0:02:58.4]} 7... e5 {[%clk 0:03:00.4]} 8. e4 {[%clk 0:02:59]} 8... a6
{[%clk 0:03:00.7]} 9. Qc2 {[%clk 0:02:56.9]} 9... exd4 {[%clk 0:02:56]} 10. Nxd4
{[%clk 0:02:57.8]} 10... Re8 {[%clk 0:02:55.6]} 11. Rd1 {[%clk 0:02:57.2]} 11...
Nc5 {[%clk 0:02:49.9]} 12. f3 {[%clk 0:02:11.9]} 12... Bd7 {[%clk 0:02:43.5]}
13. Be3 {[%clk 0:02:11.2]} 13... a5 {[%clk 0:02:39.6]} 14. Ndb5 {[%clk
0:02:10.1]} 14... h5 {[%clk 0:02:29.5]} 15. Rd2 {[%clk 0:02:09]} 15... h4 {[%clk
0:02:29.6]} 16. Rad1 {[%clk 0:02:08.7]} 16... b6 {[%clk 0:02:23.7]} 17. Bg5
{[%clk 0:02:03]} 17... hxg3 {[%clk 0:02:19.8]} 18. hxg3 {[%clk 0:02:03.9]} 18...
Bxb5 {[%clk 0:02:13.9]} 19. cxb5 {[%clk 0:01:52.6]} 19... Qc8 {[%clk 0:02:02]}
20. g4 {[%clk 0:01:31.3]} 20... Nxg4 {[%clk 0:01:52.3]} 21. fxg4 {[%clk
0:01:30.7]} 21... Qxg4 {[%clk 0:01:51.2]} 22. Be3 {[%clk 0:01:30.4]} 22... Be5
{[%clk 0:01:40.4]} 23. Bd4 {[%clk 0:01:29.4]} 23... Kg7 {[%clk 0:01:10.9]} 24.
Rf2 {[%clk 0:01:22]} 24... Ne6 {[%clk 0:00:56.6]} 25. Bxe5+ {[%clk 0:01:20.6]}
25... dxe5 {[%clk 0:00:57.1]} 26. Qe2 {[%clk 0:01:18.7]} 26... Qg5 {[%clk
0:00:52.7]} 27. Nd5 {[%clk 0:01:16.9]} 27... Rh8 {[%clk 0:00:46.4]} 28. Qe3
{[%clk 0:01:14.8]} 28... Qh4 {[%clk 0:00:36.3]} 29. Qf3 {[%clk 0:01:14.5]} 29...
Raf8 {[%clk 0:00:20.2]} 30. Qf6+ {[%clk 0:01:12.6]} 30... Qxf6 {[%clk 0:00:20]}
31. Nxf6 {[%clk 0:01:13]} 31... Nd4 {[%clk 0:00:14.7]} 32. Nd5 {[%clk 0:01:10]}
32... Nxb5 {[%clk 0:00:14]} 33. a4 {[%clk 0:01:09]} 33... Nd4 {[%clk 0:00:13.8]}
34. Nxc7 {[%clk 0:01:08.9]} 34... Rc8 {[%clk 0:00:12.4]} 35. Nd5 {[%clk
0:01:07.4]} 35... Rc4 {[%clk 0:00:12.2]} 36. Rdf1 {[%clk 0:01:04.3]} 36... Rf8
{[%clk 0:00:11.3]} 37. Nc3 {[%clk 0:01:00.6]} 37... Ne6 {[%clk 0:00:09.4]} 38.
Rd1 {[%clk 0:00:59.3]} 38... Nf4 {[%clk 0:00:09.1]} 39. Bf1 {[%clk 0:00:59.6]}
39... Rb4 {[%clk 0:00:07.7]} 40. Rd7 {[%clk 0:00:57.8]} 40... Rc8 {[%clk
0:00:06.4]} 41. Nd5 {[%clk 0:00:55.1]} 41... Rc1 {[%clk 0:00:05.8]} 42. Nxb4
{[%clk 0:00:53]} 42... axb4 {[%clk 0:00:05.1]} 43. Kh2 {[%clk 0:00:50.4]} 43...
Kh6 {[%clk 0:00:03.1]} 44. Rxf7 {[%clk 0:00:49.2]} 44... Kg5 {[%clk 0:00:02.5]}
45. Rb7 {[%clk 0:00:48.3]} 45... Kh4 {[%clk 0:00:02.7]} 46. Rxb6 {[%clk
0:00:46.5]} 46... Rd1 {[%clk 0:00:01.4]} 47. Rxb4 {[%clk 0:00:43.7]} 1-0

[Event "*** SCC Grand Prix: Titled Tuesday Blitz"]
[Site "Chess.com"]
[Date "2020.09.29"]
[Round "1"]
[White "Zorbos"]
[Black "SergioGarciaFuentes"]
[Result "0-1"]
[WhiteElo "2505"]
[BlackElo "2188"]
[TimeControl "180+1"]
[EndTime "10:07:19 PDT"]
[Termination "SergioGarciaFuentes won by checkmate"]

1. e4 {[%clk 0:02:59.5]} 1... e5 {[%clk 0:02:58.5]} 2. Nf3 {[%clk 0:02:57.7]}
2... Nf6 {[%clk 0:02:58.9]} 3. Nxe5 {[%clk 0:02:53.3]} 3... d6 {[%clk 0:02:59]}
4. Nf3 {[%clk 0:02:43.4]} 4... Nxe4 {[%clk 0:02:58.8]} 5. d3 {[%clk 0:02:43.1]}
5... Nf6 {[%clk 0:02:57.5]} 6. d4 {[%clk 0:02:43]} 6... Be7 {[%clk 0:02:51.2]}
7. Bd3 {[%clk 0:02:40.7]} 7... O-O {[%clk 0:02:51.3]} 8. O-O {[%clk 0:02:40.7]}
8... Re8 {[%clk 0:02:50]} 9. h3 {[%clk 0:02:39.4]} 9... Nbd7 {[%clk 0:02:49.2]}
10. Nc3 {[%clk 0:02:33.1]} 10... Nf8 {[%clk 0:02:48.4]} 11. Ne2 {[%clk
0:02:15.4]} 11... c5 {[%clk 0:02:36.8]} 12. Ng3 {[%clk 0:02:14.1]} 12... b6
{[%clk 0:02:22.1]} 13. b3 {[%clk 0:02:14.1]} 13... Bd7 {[%clk 0:02:08]} 14. Bb2
{[%clk 0:02:11.1]} 14... Ne6 {[%clk 0:01:59.1]} 15. Qd2 {[%clk 0:01:56]} 15...
Bc6 {[%clk 0:01:51.5]} 16. Nh4 {[%clk 0:01:37]} 16... Nxd4 {[%clk 0:01:29.6]}
17. Nhf5 {[%clk 0:01:35.3]} 17... Ne6 {[%clk 0:01:05.7]} 18. Nxe7+ {[%clk
0:01:19.5]} 18... Qxe7 {[%clk 0:01:06.6]} 19. Nf5 {[%clk 0:01:19.4]} 19... Qd8
{[%clk 0:01:06.5]} 20. Rae1 {[%clk 0:01:19.3]} 20... d5 {[%clk 0:00:55.3]} 21.
Be5 {[%clk 0:01:18]} 21... Nf8 {[%clk 0:00:34.3]} 22. Qg5 {[%clk 0:00:49.9]}
22... Ng6 {[%clk 0:00:22]} 23. Bb2 {[%clk 0:00:15.4]} 23... Ne4 {[%clk
0:00:20.6]} 24. Bc4 {[%clk 0:00:16.1]} 24... Qxg5 {[%clk 0:00:19.6]} 25. Nxg7
{[%clk 0:00:15.7]} 25... dxc4 {[%clk 0:00:17.6]} 26. f4 {[%clk 0:00:15.2]} 26...
Qd8 {[%clk 0:00:16.1]} 27. f5 {[%clk 0:00:14.7]} 27... Nh4 {[%clk 0:00:13]} 28.
Nxe8 {[%clk 0:00:15.1]} 28... Qxe8 {[%clk 0:00:12.5]} 29. Rf4 {[%clk 0:00:15.6]}
29... Nxf5 {[%clk 0:00:09]} 30. Rxf5 {[%clk 0:00:14.8]} 30... Qe6 {[%clk
0:00:09.3]} 31. Rf4 {[%clk 0:00:13.7]} 31... f5 {[%clk 0:00:08.4]} 32. bxc4
{[%clk 0:00:12.2]} 32... Qxc4 {[%clk 0:00:06.5]} 33. g4 {[%clk 0:00:12.4]} 33...
Qxc2 {[%clk 0:00:06.3]} 34. Ba1 {[%clk 0:00:13.1]} 34... Qd2 {[%clk 0:00:05.1]}
35. Ref1 {[%clk 0:00:13.1]} 35... Qe3+ {[%clk 0:00:04.8]} 36. Kh2 {[%clk
0:00:11.6]} 36... Qg3+ {[%clk 0:00:03]} 37. Kh1 {[%clk 0:00:12.3]} 37... Nf2#
{[%clk 0:00:03.3]} 0-1

[Event "*** SCC Grand Prix: Titled Tuesday Blitz"]
[Site "Chess.com"]
[Date "2020.09.29"]
[Round "1"]
[White "Xeniya2005"]
[Black "eljanov"]
[Result "0-1"]
[WhiteElo "2401"]
[BlackElo "2800"]
[TimeControl "180+1"]
[EndTime "10:07:20 PDT"]
[Termination "eljanov won on time"]

1. e4 {[%clk 0:03:00.9]} 1... e5 {[%clk 0:02:56.6]} 2. Nf3 {[%clk 0:03:00.3]}
2... Nc6 {[%clk 0:02:57]} 3. Nc3 {[%clk 0:02:59.9]} 3... Nf6 {[%clk 0:02:56.8]}
4. Bb5 {[%clk 0:02:58.8]} 4... Bb4 {[%clk 0:02:56.5]} 5. O-O {[%clk 0:02:56.7]}
5... O-O {[%clk 0:02:56.2]} 6. d3 {[%clk 0:02:55.4]} 6... Bxc3 {[%clk
0:02:55.9]} 7. bxc3 {[%clk 0:02:54.9]} 7... d6 {[%clk 0:02:56.6]} 8. Bg5 {[%clk
0:02:53.9]} 8... h6 {[%clk 0:02:56.4]} 9. Bh4 {[%clk 0:02:52.6]} 9... a6 {[%clk
0:02:56.5]} 10. Ba4 {[%clk 0:02:45.9]} 10... Bd7 {[%clk 0:02:56.4]} 11. Re1
{[%clk 0:02:39.9]} 11... Ne7 {[%clk 0:02:52.1]} 12. Bxd7 {[%clk 0:02:29.5]}
12... Nxd7 {[%clk 0:02:53]} 13. Qd2 {[%clk 0:02:25.3]} 13... Qe8 {[%clk
0:02:43.3]} 14. d4 {[%clk 0:02:09.3]} 14... Ng6 {[%clk 0:02:43.2]} 15. Bg3
{[%clk 0:02:01.7]} 15... Qe6 {[%clk 0:02:43.5]} 16. Nh4 {[%clk 0:01:42.9]} 16...
Nxh4 {[%clk 0:02:36.4]} 17. Bxh4 {[%clk 0:01:43.6]} 17... Rfe8 {[%clk
0:02:31.1]} 18. a4 {[%clk 0:01:39.7]} 18... a5 {[%clk 0:02:29.7]} 19. f3 {[%clk
0:01:33.2]} 19... Nb6 {[%clk 0:02:19.8]} 20. Qd3 {[%clk 0:01:20.9]} 20... Qd7
{[%clk 0:02:15]} 21. Reb1 {[%clk 0:01:11]} 21... Nxa4 {[%clk 0:01:59.5]} 22. Bf2
{[%clk 0:00:52.3]} 22... Rab8 {[%clk 0:01:31.6]} 23. d5 {[%clk 0:00:39.6]} 23...
b6 {[%clk 0:01:23.1]} 24. Qc4 {[%clk 0:00:26.1]} 24... Nc5 {[%clk 0:01:23.1]}
25. Bxc5 {[%clk 0:00:24.7]} 25... dxc5 {[%clk 0:01:24]} 26. Qd3 {[%clk
0:00:19.1]} 26... Rf8 {[%clk 0:01:16.3]} 27. c4 {[%clk 0:00:18.5]} 27... f5
{[%clk 0:01:15.4]} 28. Re1 {[%clk 0:00:16.9]} 28... Rbe8 {[%clk 0:01:14.6]} 29.
exf5 {[%clk 0:00:16]} 29... Qxf5 {[%clk 0:01:14.3]} 30. Re4 {[%clk 0:00:16]}
30... Qg5 {[%clk 0:01:07.1]} 31. Rae1 {[%clk 0:00:15.4]} 31... Rf4 {[%clk
0:01:07]} 32. R4e3 {[%clk 0:00:12.8]} 32... Rd4 {[%clk 0:01:05.4]} 33. Qe2
{[%clk 0:00:11.7]} 33... h5 {[%clk 0:00:53.8]} 34. c3 {[%clk 0:00:11]} 34... Rf4
{[%clk 0:00:54]} 35. Rxe5 {[%clk 0:00:03.9]} 35... Rxe5 {[%clk 0:00:53.7]} 36.
Qxe5 {[%clk 0:00:04.8]} 36... Qxe5 {[%clk 0:00:53.9]} 37. Rxe5 {[%clk
0:00:05.7]} 37... Rxc4 {[%clk 0:00:54.5]} 38. Re7 {[%clk 0:00:05.6]} 38... Rxc3
{[%clk 0:00:52.2]} 39. Rxc7 {[%clk 0:00:06.1]} 39... Kf8 {[%clk 0:00:50.8]} 40.
Rc6 {[%clk 0:00:05.6]} 40... Rb3 {[%clk 0:00:50.5]} 41. Rc7 {[%clk 0:00:04.9]}
41... a4 {[%clk 0:00:50.1]} 42. d6 {[%clk 0:00:04.5]} 42... Ke8 {[%clk
0:00:50.5]} 43. Rxg7 {[%clk 0:00:03.7]} 43... a3 {[%clk 0:00:50.8]} 44. Ra7
{[%clk 0:00:03.4]} 44... b5 {[%clk 0:00:47.7]} 45. f4 {[%clk 0:00:03.5]} 45...
b4 {[%clk 0:00:44.3]} 46. f5 {[%clk 0:00:03.7]} 46... Rd3 {[%clk 0:00:44.7]} 0-1

[Event "*** SCC Grand Prix: Titled Tuesday Blitz"]
[Site "Chess.com"]
[Date "2020.09.29"]
[Round "1"]
[White "ViktoriyaTarasova"]
[Black "Schandenfreude"]
[Result "0-1"]
[WhiteElo "2277"]
[BlackElo "2580"]
[TimeControl "180+1"]
[EndTime "10:07:21 PDT"]
[Termination "Schandenfreude won by resignation"]

1. d4 {[%clk 0:03:00.9]} 1... Nf6 {[%clk 0:02:52.6]} 2. c4 {[%clk 0:03:00.3]}
2... e6 {[%clk 0:02:51]} 3. Nc3 {[%clk 0:02:59.1]} 3... Bb4 {[%clk 0:01:44.4]}
4. Qc2 {[%clk 0:02:57.9]} 4... c5 {[%clk 0:01:36.9]} 5. dxc5 {[%clk 0:02:57.5]}
5... Bxc5 {[%clk 0:01:35.8]} 6. Nf3 {[%clk 0:02:56.9]} 6... Qb6 {[%clk
0:01:35.8]} 7. e3 {[%clk 0:02:55.2]} 7... a6 {[%clk 0:01:35.9]} 8. Be2 {[%clk
0:02:52.4]} 8... Qc7 {[%clk 0:01:36]} 9. O-O {[%clk 0:02:50.9]} 9... b6 {[%clk
0:01:36.4]} 10. a3 {[%clk 0:02:48.3]} 10... Bb7 {[%clk 0:01:36.6]} 11. b4 {[%clk
0:02:48.3]} 11... Be7 {[%clk 0:01:36.7]} 12. Bb2 {[%clk 0:02:48.7]} 12... d6
{[%clk 0:01:37.1]} 13. e4 {[%clk 0:02:37.2]} 13... Nbd7 {[%clk 0:01:37]} 14.
Rfd1 {[%clk 0:02:36.5]} 14... O-O {[%clk 0:01:36.9]} 15. Rac1 {[%clk 0:02:36.5]}
15... Rfe8 {[%clk 0:01:37.3]} 16. Nd4 {[%clk 0:02:32.8]} 16... Rac8 {[%clk
0:01:37.3]} 17. f4 {[%clk 0:02:28.8]} 17... Qb8 {[%clk 0:01:36.5]} 18. Bf3
{[%clk 0:02:25.9]} 18... Rxc4 {[%clk 0:01:36.3]} 19. Qe2 {[%clk 0:02:12.8]}
19... Rec8 {[%clk 0:01:36]} 20. Na4 {[%clk 0:02:07.2]} 20... Rxc1 {[%clk
0:01:32.5]} 21. Rxc1 {[%clk 0:02:07.7]} 21... Rxc1+ {[%clk 0:01:33]} 22. Bxc1
{[%clk 0:02:08.2]} 22... b5 {[%clk 0:01:32.7]} 23. Nc3 {[%clk 0:02:05.9]} 23...
Qc7 {[%clk 0:01:32.9]} 24. Bb2 {[%clk 0:02:05.6]} 24... Nb6 {[%clk 0:01:33]} 25.
Qd3 {[%clk 0:01:42.4]} 25... Nc4 {[%clk 0:01:32.8]} 26. Bc1 {[%clk 0:01:42.8]}
26... Qb6 {[%clk 0:01:26.8]} 27. Kf1 {[%clk 0:01:40]} 27... Bf8 {[%clk
0:01:25.2]} 28. g4 {[%clk 0:01:39.5]} 28... e5 {[%clk 0:01:21.6]} 29. Nf5 {[%clk
0:01:35.2]} 29... exf4 {[%clk 0:01:13]} 30. Bxf4 {[%clk 0:01:31.5]} 30... Ne5
{[%clk 0:01:11.6]} 31. Bxe5 {[%clk 0:01:30]} 31... dxe5 {[%clk 0:01:12.5]} 32.
Nd5 {[%clk 0:01:30.3]} 32... Bxd5 {[%clk 0:01:12.1]} 33. exd5 {[%clk 0:01:30.7]}
33... g6 {[%clk 0:01:10.5]} 34. Ng3 {[%clk 0:01:27.2]} 34... Bd6 {[%clk
0:01:08.9]} 35. Ne4 {[%clk 0:01:25.5]} 35... Nxe4 {[%clk 0:01:09]} 36. Bxe4
{[%clk 0:01:25.9]} 36... Qc7 {[%clk 0:01:08.9]} 37. Qc2 {[%clk 0:01:24.9]} 37...
Qd7 {[%clk 0:01:00.9]} 38. h3 {[%clk 0:01:20.6]} 38... Kg7 {[%clk 0:01:01.3]}
39. Qc6 {[%clk 0:01:16.3]} 39... Qe7 {[%clk 0:00:26.7]} 40. Qxa6 {[%clk
0:01:08.8]} 40... Qf6+ {[%clk 0:00:25]} 41. Ke2 {[%clk 0:01:06]} 41... h5 {[%clk
0:00:21.4]} 42. Qxb5 {[%clk 0:01:02.6]} 42... hxg4 {[%clk 0:00:20.8]} 43. hxg4
{[%clk 0:01:02.4]} 43... Qf4 {[%clk 0:00:20.8]} 44. Bf3 {[%clk 0:00:43.9]} 44...
e4 {[%clk 0:00:21.1]} 45. Bg2 {[%clk 0:00:33.9]} 45... Qxg4+ {[%clk 0:00:21.4]}
46. Kf1 {[%clk 0:00:34.5]} 46... Qd1+ {[%clk 0:00:16.9]} 47. Kf2 {[%clk
0:00:31.8]} 47... Qd2+ {[%clk 0:00:17.2]} 48. Qe2 {[%clk 0:00:30.9]} 48... Bg3+
{[%clk 0:00:17.1]} 49. Kf1 {[%clk 0:00:28.7]} 49... Qc1+ {[%clk 0:00:17.4]} 0-1